bitfinex/quotes_ETHUSD_20251012
["timestamp","ask_amount","ask_price","bid_price","bid_amount"]
[1760233310213,2.68000723,3731.4,3729.9,0.0351]
[1760233310414,2.68000723,3731.4,3729.0,0.0351]
[1760233310415,1.92,3730.7,3729.0,0.0351]
[1760233310617,2.68052051,3730.7,3729.8,2.68105285]
[1760233310857,0.4286,3730.8,3729.4,2.68133118]
[1760233311018,1.92,3730.5,3729.8,2.68109043]
[1760233311218,0.4286,3731.3,3729.4,0.30323312]
[1760233311454,4.60035055,3730.9,3730.0,2.68090614]
[1760233311750,4.60035055,3730.9,3729.8,2.68110097]
[1760233311921,0.4286,3731.3,3730.0,3.31456514]
[1760233312121,0.1336,3730.4,3730.1,2.68088376]
[1760233312335,0.1336,3730.4,3730.0,0.96505651]
[1760233312513,0.1336,3730.4,3730.3,2.68074953]
[1760233312719,0.1336,3730.4,3730.3,2.71584953]
[1760233313128,1.92,3731.6,3730.8,2.68034941]
[1760233313566,1.92,3731.7,3730.7,2.68044533]
[1760233313736,0.1336,3730.8,3730.7,2.68044533]
[1760233313962,0.1336,3730.8,3730.2,0.1336]
[1760233314170,3.110451,3730.8,3729.1,0.0351]
[1760233314453,1.92,3730.5,3729.1,0.0351]
[1760233314655,0.43,3730.8,3728.8,0.002]
[1760233314656,1.92,3730.3,3729.5,2.68126603]
[1760233315156,0.43,3730.2,3728.8,0.002]
[1760233315485,1.92,3729.8,3728.8,0.6356]
[1760233315762,2.68153597,3729.3,3728.8,0.002]
[1760233316058,0.43,3729.7,3728.8,0.002]
[1760233316425,0.2319,3729.8,3728.8,0.002]
[1760233316626,1.92,3729.5,3728.8,0.002]
[1760233316831,0.43,3729.7,3728.8,0.002]
[1760233317029,1.92,3729.3,3728.8,0.002]
[1760233317223,2.68147507,3729.3,3728.8,0.002]
[1760233317442,1.92,3729.2,3728.8,0.002]
[1760233317674,1.92,3729.5,3728.8,0.002]
[1760233318262,1.92,3729.3,3728.8,0.002]
[1760233318584,4.60175601,3728.9,3728.8,0.002]
[1760233318760,1.92,3728.9,3728.8,0.002]
[1760233319146,2.35,3728.9,3728.8,0.002]
[1760233319471,5.03175601,3728.9,3728.8,0.002]
[1760233319675,5.03075601,3728.9,3728.8,0.002]
[1760233320247,1.919,3728.9,3728.8,0.002]
[1760233320482,4.60075601,3728.9,3728.8,0.002]
[1760233320638,1.919,3728.9,3728.8,0.002]
[1760233321752,4.60204371,3728.5,3728.4,0.002]
[1760233322074,1.92,3728.5,3728.4,0.002]
[1760233323970,1.92,3728.5,3728.4,2.68411565]
[1760233324569,1.92,3728.5,3728.4,0.002]
[1760233325280,1.92,3728.5,3728.4,2.68411565]
[1760233325479,1.92,3728.5,3728.4,0.002]
[1760233326209,1.92,3728.5,3728.4,2.68411565]
[1760233326402,1.92,3728.5,3728.4,3.22075161]
[1760233326604,2.0536,3728.5,3728.4,3.22075161]
[1760233327484,2.0536,3728.5,3728.4,0.002]
[1760233327899,2.35,3728.5,3728.4,0.002]
[1760233328080,1.92,3728.5,3728.4,0.002]
[1760233328305,4.60204371,3728.5,3728.4,0.002]
[1760233328490,5.03204371,3728.5,3728.4,0.002]
[1760233328693,5.03204371,3728.5,3728.0,0.002]
[1760233328694,2.68233148,3728.1,3728.0,0.002]
[1760233328901,4.60233148,3728.1,3728.0,0.002]
[1760233329108,5.03233148,3728.1,3728.0,0.002]
[1760233329904,1.92,3728.1,3728.0,0.002]
[1760233330631,1.92,3728.1,3728.0,2.68440343]
[1760233330829,0.43,3729.5,3728.0,0.53869493]
[1760233331123,0.43,3730.1,3728.2,2.68225953]
[1760233331281,15.75387646,3730.6,3728.6,2.68197178]
[1760233331478,0.43,3729.7,3728.3,2.68217571]
[1760233331682,2.1519,3729.8,3728.3,2.68217571]
[1760233331683,1.92,3729.0,3728.3,2.68217571]
[1760233331979,2.68192899,3728.7,3728.0,0.002]
[1760233332179,1.92,3728.7,3728.0,0.002]
[1760233332421,2.68171294,3729.0,3728.0,2.68440019]
[1760233332627,0.43,3728.9,3728.0,0.002]
[1760233332838,2.68233148,3728.1,3728.0,0.002]
[1760233333153,4.60233148,3728.1,3728.0,0.002]
[1760233334029,5.03233148,3728.1,3728.0,0.002]
[1760233334225,1.92,3728.1,3728.0,0.002]
[1760233335450,1.92,3728.1,3728.0,2.68440343]
[1760233335647,1.92,3728.1,3728.0,0.002]
[1760233336462,1.92,3728.1,3728.0,2.68440343]
[1760233336760,1.92,3728.1,3728.0,3.22109804]
[1760233337755,1.37306098,3731.2,3729.1,2.6815445]
[1760233337756,0.6619,3730.2,3729.1,2.6815445]
[1760233337964,0.1336,3729.1,3729.0,2.68168409]
[1760233338262,0.1336,3729.4,3729.2,0.6336]
[1760233338472,0.001,3731.2,3729.2,0.6336]
[1760233338473,2.68024849,3731.0,3729.5,0.6336]
[1760233338627,0.1336,3730.4,3729.6,0.6336]
[1760233338941,0.1336,3730.6,3730.4,2.68061828]
[1760233339269,0.43,3730.9,3729.9,0.6336]
[1760233339455,0.001,3731.2,3729.9,0.6336]
[1760233339456,0.1336,3730.2,3730.1,3.31449327]
[1760233339767,0.1336,3730.2,3730.1,4.0204144]
[1760233339987,0.1336,3730.2,3730.1,1.30042113]
[1760233340169,0.1336,3730.2,3730.1,0.6336]
[1760233340586,0.1336,3730.2,3729.8,2.68110279]
[1760233341287,1.92,3731.0,3730.4,2.6806746]
[1760233341582,0.1336,3730.4,3730.3,3.31433684]
[1760233341882,0.001,3731.2,3730.5,0.6336]
[1760233342186,0.1336,3731.0,3730.9,3.31391842]
[1760233342350,0.1336,3731.0,3730.9,3.35301842]
[1760233342883,0.1336,3731.0,3730.9,0.6727]
[1760233343184,0.1336,3731.0,3730.9,0.6336]
[1760233343713,0.1336,3731.0,3730.7,2.68044708]
[1760233343714,0.1336,3731.0,3730.4,0.1336]
[1760233343885,1.92,3730.8,3729.7,0.6336]
[1760233344181,1.92,3730.8,3728.4,13.07333618]
[1760233344182,0.1336,3730.5,3729.9,2.6810189]
[1760233344484,0.1336,3730.2,3729.7,2.68116856]
[1760233344690,0.1336,3730.2,3729.8,3.31470498]
[1760233344986,2.68039227,3730.8,3728.8,0.0391]
[1760233344987,0.4723,3730.8,3728.8,0.0391]
[1760233345282,0.1336,3729.8,3729.5,2.68131673]
[1760233345485,0.1336,3729.8,3729.6,0.6336]
[1760233345647,0.1336,3729.8,3728.3,0.0391]
[1760233345648,2.68122313,3729.7,3728.3,0.0391]
[1760233345854,3.15341596,3729.8,3728.9,2.6816961]
[1760233346199,1.92,3729.4,3728.7,2.68188238]
[1760233346352,2.68132457,3729.5,3728.8,2.68181367]
[1760233346353,1.92,3729.5,3728.8,2.68181367]
[1760233347162,1.92,3729.3,3728.4,0.6336]
[1760233347975,4.60129953,3729.6,3728.4,0.6336]
[1760233348176,4.60129953,3729.6,3728.8,2.68182572]
[1760233348384,1.92,3729.4,3728.6,0.6336]
[1760233348585,1.92,3729.2,3728.7,0.6336]
[1760233348786,1.92,3729.3,3728.7,3.31549586]
[1760233349390,0.2145,3729.9,3726.2,3.2334608]
[1760233349391,4.60090385,3730.1,3729.3,0.6336]
[1760233349591,4.60090385,3730.1,3729.3,3.31506805]
[1760233349899,1.92,3730.1,3729.4,2.68137184]
[1760233350056,1.92,3730.1,3729.2,0.6336]
[1760233350057,2.68091293,3730.1,3729.2,3.31507966]
[1760233350261,2.68182268,3730.2,3728.9,0.6336]
[1760233350458,2.68089587,3730.1,3729.3,2.68141491]
[1760233350657,2.68089587,3730.1,3729.1,0.6336]
[1760233350658,2.68119077,3729.7,3729.1,0.6336]
[1760233350990,1.92,3729.4,3728.4,2.68211565]
[1760233351191,1.92,3729.4,3728.8,0.6336]
[1760233351399,1.92,3729.4,3728.4,0.27212157]
[1760233351574,1.92,3729.2,3728.5,2.68203117]
[1760233351893,1.92,3729.2,3728.6,0.6336]
[1760233352590,0.2145,3729.8,3728.0,0.6356]
[1760233352767,2.68147747,3729.3,3728.7,0.6336]
[1760233353092,2.68147747,3729.3,3728.6,0.6336]
[1760233353697,0.4723,3729.3,3728.0,0.002]
[1760233353912,0.4723,3729.2,3728.0,0.002]
[1760233354093,2.68227028,3728.2,3728.0,0.002]
[1760233354406,2.68233148,3728.1,3728.0,0.002]
[1760233354608,4.60233148,3728.1,3728.0,0.002]
[1760233355198,5.07463148,3728.1,3728.0,0.002]
[1760233355393,1.92,3728.1,3728.0,0.002]
[1760233356106,2.68185581,3728.8,3728.1,0.6336]
[1760233356432,2.68190489,3728.7,3728.1,0.6336]
[1760233356603,0.4723,3729.4,3728.1,0.33180823]
[1760233356806,0.4723,3729.4,3728.3,0.6336]
[1760233357037,0.1336,3728.3,3728.0,0.002]
[1760233357196,0.1336,3728.1,3728.0,0.002]
[1760233357594,0.6059,3728.1,3728.0,0.002]
[1760233357933,4.6026193,3727.7,3727.6,0.002]
[1760233358133,1.92,3727.7,3727.6,0.002]
[1760233358497,4.6026193,3727.7,3727.6,0.002]
[1760233359037,5.0749193,3727.7,3727.6,0.002]
[1760233359395,2.3923,3727.7,3727.6,0.002]
[1760233359597,1.92,3727.7,3727.6,0.002]
[1760233360434,1.92,3727.7,3727.6,3.31829127]
[1760233360842,1.92,3728.5,3727.7,3.3162193]
[1760233361041,2.68205475,3728.5,3727.7,3.31621068]
[1760233361251,2.68183775,3728.8,3727.7,3.31621068]
[1760233361252,1.92,3728.8,3727.8,0.6336]
[1760233361457,0.4309,3728.6,3727.8,0.6336]
[1760233361738,0.4309,3728.6,3727.6,0.002]
[1760233361739,4.60228998,3728.2,3727.6,0.002]
[1760233361905,1.92,3728.0,3727.6,0.002]
[1760233362300,2.68227124,3728.2,3727.6,0.002]
[1760233363635,1.92,3728.1,3727.6,0.002]
[1760233363837,1.92,3728.5,3727.8,0.6336]
[1760233364040,2.3509,3728.6,3727.7,0.6336]
[1760233364239,1.92,3728.3,3727.7,0.6336]
[1760233364706,2.68205782,3728.5,3727.7,3.31621311]
[1760233365040,1.92,3728.4,3727.7,3.31621311]
[1760233365254,2.68226473,3728.2,3727.6,0.002]
[1760233365461,1.92,3728.1,3727.6,0.002]
[1760233366213,2.68233278,3728.1,3727.6,0.002]
[1760233366417,1.92,3727.8,3727.6,0.002]
[1760233366633,0.4309,3728.0,3727.6,0.002]
[1760233366855,0.4309,3727.8,3727.6,0.002]
[1760233367551,0.001,3728.2,3727.6,0.002]
[1760233367766,2.68234566,3728.1,3727.6,0.002]
[1760233367927,0.1336,3727.7,3727.6,0.6356]
[1760233368132,0.1336,3727.7,3727.6,0.002]
[1760233368337,0.1336,3727.7,3727.6,0.6356]
[1760233369624,0.1336,3727.7,3727.6,3.65012666]
[1760233370049,0.001,3728.2,3728.1,0.6336]
[1760233370437,0.1336,3728.1,3727.8,0.6336]
[1760233370756,0.001,3728.2,3727.8,0.6336]
[1760233371259,0.1336,3727.8,3727.6,0.002]
[1760233371470,1.92,3728.1,3727.6,0.002]
[1760233372743,0.4446,3728.1,3727.6,0.002]
[1760233372942,2.68233148,3728.1,3727.6,0.002]
[1760233373144,1.92,3728.0,3727.6,0.002]
[1760233373752,2.68240546,3728.0,3727.6,0.002]
[1760233373956,0.001,3728.2,3727.6,0.002]
[1760233373957,4.6026193,3727.7,3727.6,0.002]
[1760233374158,2.68290719,3727.3,3727.2,0.002]
[1760233374359,4.68572714,3726.9,3725.3,0.002]
[1760233374566,1.92,3726.8,3725.4,2.68427546]
[1760233374753,2.68370331,3726.2,3725.5,0.6336]
[1760233375156,2.68363613,3726.3,3725.5,0.6336]
[1760233375355,2.68363613,3726.3,3725.5,3.31779906]
[1760233375746,1.92,3726.1,3725.4,3.22605389]
[1760233376170,1.92,3726.2,3725.5,3.3177864]
[1760233376343,1.92,3726.6,3725.5,1.28819816]
[1760233376553,1.92,3726.5,3726.0,0.6336]
[1760233376870,0.4446,3726.6,3725.9,0.6336]
[1760233377067,1.92,3726.3,3725.4,0.6336]
[1760233377378,1.92,3726.4,3725.8,0.6336]
[1760233377610,0.4446,3726.6,3725.8,3.3175864]
[1760233377873,1.92,3726.5,3725.8,0.6336]
[1760233378061,2.68348503,3726.5,3725.8,0.6336]
[1760233378263,0.4446,3727.1,3725.9,0.6336]
[1760233378465,1.92,3726.6,3725.7,0.6336]
[1760233378678,1.92,3726.7,3726.1,0.6336]
[1760233379158,1.92,3727.0,3726.3,0.6336]
[1760233379349,1.92,3727.2,3726.3,3.31721343]
[1760233379549,0.4446,3727.4,3726.3,3.31721343]
[1760233379550,2.68290724,3727.3,3726.4,2.68350016]
[1760233379857,2.68299364,3727.2,3726.5,3.31708235]
[1760233380184,2.68299364,3727.2,3726.5,0.6336]
[1760233380757,0.4446,3727.1,3725.1,0.0471]
[1760233380964,1.92,3726.8,3726.2,0.6336]
[1760233381285,0.4446,3726.7,3725.1,0.0471]
[1760233381495,1.92,3726.5,3725.1,0.0471]
[1760233381694,2.683485,3726.5,3725.8,0.6336]
[1760233382479,2.68334309,3726.7,3726.0,0.6336]
[1760233382684,4.60324982,3726.9,3726.0,0.6336]
[1760233382880,4.60324982,3726.9,3726.2,0.6336]
[1760233383454,2.68233148,3728.1,3726.2,0.60012694]
[1760233383659,0.4446,3727.8,3726.9,0.6336]
[1760233383868,0.42076933,3728.5,3727.5,0.6336]
[1760233384066,2.68242564,3728.0,3727.3,0.6336]
[1760233384362,0.1336,3727.4,3727.3,3.31650719]
[1760233384560,0.1336,3727.4,3726.9,0.6336]
[1760233384780,0.1336,3727.1,3726.9,0.6336]
[1760233385503,0.1336,3727.1,3727.0,3.31672315]
[1760233386478,3.3368839,3728.9,3726.9,0.60001923]
[1760233386803,0.1336,3727.1,3727.0,3.31669974]
[1760233387212,0.1336,3727.1,3727.0,0.6336]
[1760233388495,0.1336,3727.1,3727.0,3.31672315]
[1760233389493,0.1336,3727.1,3727.0,0.6336]
[1760233390019,0.1336,3727.1,3725.7,0.0471]
[1760233390217,0.1336,3726.1,3725.5,2.68620277]
[1760233390417,0.1336,3725.8,3725.7,2.68405937]
[1760233390619,0.1336,3725.8,3725.5,0.28889028]
[1760233390620,0.1336,3725.8,3725.5,0.002]
[1760233390930,0.1336,3725.6,3725.5,0.002]
[1760233392419,2.68361995,3726.4,3725.5,0.002]
[1760233392420,0.2344,3728.9,3725.6,0.6336]
[1760233392623,0.2344,3728.9,3727.8,0.6336]
[1760233392920,0.679,3728.9,3727.3,0.6336]
[1760233393116,0.001,3730.2,3727.3,0.6336]
[1760233393117,2.68103924,3729.9,3728.1,3.31593148]
[1760233393316,0.4446,3730.0,3728.1,3.92047743]
[1760233393522,0.001,3730.2,3728.9,2.68175601]
[1760233393816,0.001,3730.2,3730.1,3.31449327]
[1760233394321,0.001,3730.2,3730.1,3.35859327]
[1760233394526,0.001,3730.2,3730.1,0.6336]
[1760233395718,0.001,3731.2,3730.2,0.6336]
[1760233395922,0.001,3731.2,3730.9,3.31391842]
[1760233396123,0.001,3731.6,3731.5,3.31348744]
[1760233396423,0.001,3731.6,3731.5,0.6336]
[1760233397186,0.001,3731.6,3731.5,3.31348744]
[1760233398227,0.001,3731.6,3731.5,0.6336]
[1760233398922,0.001,3731.6,3731.5,3.35458744]
[1760233399110,0.001,3731.6,3731.5,3.69004618]
[1760233400024,0.001,3731.6,3731.5,3.64894618]
[1760233400328,0.001,3731.6,3731.5,0.6336]
[1760233400622,0.001,3731.6,3730.4,0.0411]
[1760233400826,0.001,3731.6,3730.9,0.6336]
[1760233400991,1.921,3731.6,3730.8,2.68038689]
[1760233401197,1.921,3731.6,3730.9,0.6336]
[1760233401398,1.921,3731.6,3730.8,2.68038689]
[1760233401929,0.001,3731.6,3730.9,0.6336]
[1760233402114,0.001,3731.6,3731.2,0.6336]
[1760233402313,0.001,3731.6,3730.8,0.0411]
[1760233402314,0.1346,3731.6,3731.4,0.6336]
[1760233402718,0.1346,3731.6,3731.1,0.6336]
[1760233403025,0.1346,3731.6,3731.3,0.6336]
[1760233403197,0.1346,3731.6,3731.5,0.6336]
[1760233403792,0.1346,3731.6,3731.3,0.6336]
[1760233404027,0.1346,3731.6,3731.5,3.31348744]
[1760233404227,0.001,3731.6,3731.5,3.48818744]
[1760233405999,0.001,3732.0,3731.9,3.3132002]
[1760233406202,0.001,3732.0,3731.9,16.1254178]
[1760233406531,0.001,3732.0,3731.9,18.0865178]
[1760233406729,0.001,3732.0,3731.9,20.1631396]
[1760233406940,0.001,3732.0,3731.9,7.350922]
[1760233407304,0.001,3732.0,3731.9,5.430922]
[1760233408131,0.001,3732.0,3731.9,2.7207002]
[1760233408628,0.001,3732.0,3731.9,3.3543002]
[1760233409539,0.001,3732.0,3731.9,2.7207002]
[1760233409717,0.001,3732.0,3731.9,2.6796002]
[1760233409932,0.001,3732.0,3731.9,2.7207002]
[1760233410115,0.001,3732.0,3731.9,0.0411]
[1760233410314,0.001,3732.0,3731.9,2.7207002]
[1760233410519,0.001,3732.0,3731.9,2.6796002]
[1760233410917,0.001,3732.0,3731.9,3.3132002]
[1760233411302,0.001,3732.0,3731.4,0.0411]
[1760233411554,0.001,3732.0,3731.7,2.67973179]
[1760233411706,0.001,3732.0,3731.8,0.6336]
[1760233412036,0.001,3732.0,3731.1,0.002]
[1760233412213,0.001,3732.0,3731.1,2.68215755]
[1760233412415,2.68054155,3732.0,3731.1,0.6356]
[1760233412614,1.92,3731.9,3731.1,0.6356]
[1760233412838,2.67960328,3731.9,3731.1,2.68216368]
[1760233413039,2.67960328,3731.9,3731.1,0.002]
[1760233413418,2.68054531,3732.0,3731.2,0.6336]
[1760233413713,0.6919,3731.9,3731.1,0.002]
[1760233413898,1.92,3731.3,3731.1,0.002]
[1760233414105,2.68003504,3731.3,3731.1,0.002]
[1760233414506,5.06840291,3731.2,3731.1,0.002]
[1760233417109,15.15983791,3731.2,3731.1,0.002]
[1760233417304,13.56664891,3731.2,3731.1,0.002]
[1760233417523,5.06840291,3731.2,3731.1,0.002]
[1760233417831,7.74540691,3731.2,3731.1,0.002]
[1760233418211,17.90477591,3731.2,3731.1,0.002]
[1760233418408,5.06840291,3731.2,3731.1,0.002]
[1760233418741,7.21979691,3731.2,3731.1,0.002]
[1760233418950,0.2236,3731.9,3731.1,0.002]
[1760233419152,0.4693,3732.0,3731.1,0.002]
[1760233419319,0.001,3732.0,3731.1,0.002]
[1760233419523,0.001,3732.0,3731.4,3.31355361]
[1760233419524,0.1336,3731.5,3731.4,3.31355361]
[1760233419722,0.1336,3731.5,3731.4,3.64510897]
[1760233419924,0.1336,3731.5,3731.4,0.96515536]
[1760233420948,0.1336,3731.5,3731.4,3.64511462]
[1760233421154,0.1336,3731.8,3731.6,2.67977985]
[1760233422153,0.1336,3731.8,3731.7,2.67974381]
[1760233422853,0.1336,3731.8,3731.4,3.31353364]
[1760233423052,0.1336,3731.8,3731.6,0.6336]
[1760233423240,0.1336,3731.8,3731.7,2.67974381]
[1760233423758,0.001,3731.9,3731.8,3.313272]
[1760233423917,0.001,3731.9,3731.8,3.354372]
[1760233424760,0.001,3732.0,3731.9,3.3132002]
[1760233424924,0.001,3732.0,3731.9,4.38303716]
[1760233425819,0.001,3732.0,3731.9,3.74943716]
[1760233426024,0.001,3732.0,3731.8,2.6796226]
[1760233426244,0.001,3732.0,3731.6,0.1336]
[1760233426465,0.001,3732.0,3731.7,0.6336]
[1760233426772,0.001,3732.0,3731.6,0.1336]
[1760233427064,0.001,3732.0,3731.5,2.67987477]
[1760233427253,0.1336,3731.8,3731.5,2.67987477]
[1760233427458,0.1336,3731.8,3731.3,2.68003103]
[1760233427459,0.1336,3731.8,3731.7,2.67974381]
[1760233427656,2.0536,3731.8,3731.1,0.002]
[1760233427845,0.1336,3731.5,3731.2,2.68010291]
[1760233428051,0.1336,3731.5,3731.3,0.6336]
[1760233428249,1.92,3731.8,3731.1,0.002]
[1760233428450,0.1336,3731.5,3731.2,0.6336]
[1760233428767,0.1336,3731.5,3731.4,0.6336]
[1760233428957,0.1336,3731.5,3731.1,0.002]
[1760233429159,1.92,3731.3,3731.1,0.002]
[1760233429460,1.92,3731.5,3731.1,0.002]
[1760233429667,1.92,3731.9,3731.1,0.002]
[1760233429971,2.67995305,3731.5,3731.1,0.002]
[1760233430148,2.6068,3731.8,3731.1,0.002]
[1760233430347,0.001,3732.0,3731.4,0.6336]
[1760233430549,1.921,3732.0,3731.3,2.68001949]
[1760233430952,2.68053724,3732.0,3731.2,3.31369573]
[1760233431259,1.921,3732.0,3731.2,0.6336]
[1760233431559,0.001,3732.0,3731.5,0.6336]
[1760233431770,1.92,3731.8,3731.3,0.6336]
[1760233433046,0.4428,3731.7,3731.2,0.6336]
[1760233433240,1.92,3731.5,3731.2,0.6336]
[1760233433444,1.92,3731.8,3731.2,0.6336]
[1760233433642,0.001,3732.0,3731.2,0.6336]
[1760233433872,0.001,3732.0,3731.3,2.67996038]
[1760233434091,2.67995362,3731.5,3731.3,0.6336]
[1760233434387,0.6779,3731.9,3731.1,0.002]
[1760233434562,0.4428,3731.4,3731.1,0.002]
[1760233435194,2.679672,3731.8,3731.1,0.002]
[1760233435391,2.67988738,3731.6,3731.1,0.002]
[1760233435572,2.67991525,3731.5,3731.1,0.002]
[1760233437463,2.68003576,3731.3,3731.1,0.002]
[1760233437662,2.68003108,3731.3,3731.1,0.002]
[1760233437885,2.68010291,3731.2,3731.1,0.002]
[1760233438091,4.60010291,3731.2,3731.1,0.002]
[1760233438565,1.92,3731.2,3731.1,0.002]
[1760233438794,5.04290291,3731.2,3731.1,0.002]
[1760233438994,2.3628,3731.2,3731.1,0.002]
[1760233439392,5.04290291,3731.2,3731.1,0.002]
[1760233441184,1.92,3731.2,3731.1,0.002]
[1760233441604,10.08316591,3731.2,3731.1,0.002]
[1760233441806,0.1336,3731.1,3730.8,0.002]
[1760233441974,2.3628,3731.2,3730.8,0.002]
[1760233442178,1.92,3731.3,3730.8,0.002]
[1760233442408,0.4428,3731.7,3730.8,0.6356]
[1760233442579,1.92,3731.5,3730.8,0.6356]
[1760233442780,2.68002738,3731.4,3730.8,0.002]
[1760233443884,0.4428,3731.3,3730.8,0.002]
[1760233444098,1.92,3731.0,3730.8,0.002]
[1760233444411,2.68005173,3731.3,3730.8,0.002]
[1760233445262,1.92,3731.2,3730.8,0.002]
[1760233445415,0.001,3731.9,3731.1,2.68011122]
[1760233445615,0.001,3731.9,3731.4,0.6336]
[1760233445834,0.1336,3731.2,3731.1,0.6336]
[1760233446425,0.001,3731.9,3731.1,2.68016127]
[1760233446707,0.001,3731.9,3731.8,0.6336]
[1760233446911,0.1336,3731.6,3731.3,0.6336]
[1760233447112,0.001,3731.9,3731.8,2.679672]
[1760233447415,0.001,3731.9,3731.8,4.18056414]
[1760233447580,0.001,3731.9,3731.8,4.22366414]
[1760233449731,2.67810638,3734.0,3731.8,4.22366414]
[1760233449732,2.6778966,3734.3,3732.6,3.31269767]
[1760233449936,2.67874935,3734.5,3732.6,3.31269767]
[1760233450094,0.001,3734.5,3732.6,3.35579767]
[1760233450432,0.001,3734.5,3734.0,3.31169319]
[1760233450807,0.001,3734.5,3734.0,3.95378173]
[1760233453626,0.001,3734.5,3734.4,2.67780634]
[1760233453826,0.001,3734.5,3734.4,3.31140634]
[1760233454137,0.001,3734.5,3734.4,3.35450634]
[1760233457153,0.001,3734.5,3734.4,3.48810634]
[1760233457454,0.001,3734.5,3734.4,4.10470754]
[1760233458550,0.001,3734.5,3734.4,3.44500634]
[1760233459404,0.001,3734.5,3734.4,3.48810634]
[1760233460223,0.001,3734.5,3733.1,0.0431]
[1760233460418,0.4438,3734.5,3733.1,0.0431]
[1760233460660,0.1336,3733.8,3733.1,0.1336]
[1760233460821,0.1336,3734.2,3733.7,0.6336]
[1760233461022,0.1336,3734.2,3733.9,0.6336]
[1760233461334,0.001,3734.5,3734.4,3.31140634]
[1760233461809,0.001,3734.5,3734.4,3.48810634]
[1760233462446,0.001,3734.5,3734.4,16.54500552]
[1760233462646,1e-08,3735.0,3734.9,3.31104785]
[1760233462864,0.001,3735.3,3735.2,3.31083281]
[1760233463161,0.001,3735.3,3735.2,5.49644375]
[1760233463362,0.001,3735.3,3735.2,3.35393281]
[1760233463561,0.001,3735.3,3735.2,3.48753281]
[1760233465852,0.001,3735.4,3735.3,3.31076113]
[1760233466055,0.001,3735.4,3735.3,3.35386113]
[1760233467890,2.67546085,3737.7,3735.8,3.31040282]
[1760233468154,0.1336,3737.3,3735.8,4.31042795]
[1760233468363,0.4447,3737.8,3735.8,4.35352795]
[1760233468544,0.1336,3737.0,3735.8,4.35352795]
[1760233470276,1.92,3737.7,3735.8,17.41042713]
[1760233470560,0.1336,3737.3,3735.8,17.41042713]
[1760233470734,0.2289,3739.3,3738.4,2.67493332]
[1760233470936,0.4447,3740.3,3737.2,2.67580006]
[1760233471270,0.4447,3740.3,3738.5,0.6336]
[1760233471473,0.4447,3740.3,3739.1,0.6336]
[1760233471474,1.92,3740.0,3739.1,0.6336]
[1760233471696,3.11829617,3740.3,3739.1,0.6336]
[1760233471697,2.67387813,3739.9,3739.1,0.6336]
[1760233471972,2.67386544,3740.0,3739.2,0.6336]
[1760233472139,0.4447,3740.3,3739.4,0.6336]
[1760233472544,1.92,3739.6,3739.2,0.6336]
[1760233472884,1.92,3739.7,3738.8,0.6336]
[1760233473175,1.92,3740.0,3739.3,3.30783499]
[1760233473336,2.3647,3740.2,3739.3,0.6336]
[1760233473535,1.92,3739.8,3739.3,0.6336]
[1760233473935,1.92,3739.8,3739.2,0.6336]
[1760233474144,2.67373056,3740.1,3739.2,0.6336]
[1760233474332,0.4447,3740.2,3739.1,3.30803707]
[1760233474540,0.4447,3740.2,3739.3,0.6336]
[1760233474738,2.3647,3740.2,3739.3,0.6336]
[1760233474940,2.67379918,3740.0,3739.2,0.6336]
[1760233475142,0.4447,3740.2,3739.3,0.6336]
[1760233475350,1.92,3740.0,3739.3,0.6336]
[1760233475567,1.92,3740.0,3739.2,0.6336]
[1760233475568,2.67399661,3739.8,3739.2,0.6336]
[1760233475749,1.92,3739.7,3739.2,0.6336]
[1760233476249,1.92,3739.5,3738.8,0.6336]
[1760233476449,2.6741467,3739.6,3738.8,0.6336]
[1760233476450,1.92,3739.6,3738.8,3.30825117]
[1760233476750,0.4447,3739.7,3738.6,0.6336]
[1760233477075,1.92,3739.2,3738.3,2.67500939]
[1760233477389,0.4447,3739.6,3737.9,0.0431]
[1760233477682,2.67436631,3739.3,3738.0,0.6336]
[1760233477891,2.67438361,3739.2,3738.5,0.6336]
[1760233478044,0.4447,3739.6,3738.5,0.6336]
[1760233478390,1.92,3738.8,3738.2,0.6336]
[1760233478553,1.92,3738.6,3737.9,0.0431]
[1760233478739,1.92,3739.1,3737.5,0.0431]
[1760233478945,2.67445964,3739.1,3738.2,0.6336]
[1760233479279,0.4447,3739.2,3738.0,0.6336]
[1760233479280,2.67475486,3738.7,3738.0,0.6336]
[1760233479451,2.67459371,3738.9,3738.1,2.6751555]
[1760233479652,1.92,3739.3,3738.2,0.6336]
[1760233479962,2.6743001,3739.3,3738.3,0.6336]
[1760233480168,0.4447,3739.6,3738.3,0.6336]
[1760233480342,1.92,3738.7,3738.2,0.6336]
[1760233480544,2.67488343,3738.5,3737.7,2.6754167]
[1760233480768,0.1336,3738.2,3737.6,0.1336]
[1760233481073,0.1336,3738.2,3737.7,3.30903157]
[1760233481275,0.1336,3738.2,3737.9,0.6336]
[1760233481638,0.1336,3738.2,3738.0,0.6336]
[1760233481839,0.1336,3738.2,3738.1,0.6336]
[1760233482264,0.1336,3738.2,3737.9,0.6336]
[1760233482465,0.4447,3739.4,3737.9,3.35195112]
[1760233482666,0.41950283,3740.3,3738.5,3.30846539]
[1760233482667,0.4447,3739.8,3738.5,3.30846539]
[1760233482879,0.1336,3739.1,3738.8,0.6336]